fUSD/lending_fUSD_20250414
["ID","MTS","AMOUNT","RATE_DAILY","PERIOD"]
[357963145,1744621849913,-250.0,0.00019981,2]
[357963146,1744621849922,-474.5,0.00019985,2]
[357963147,1744621849931,-2131.26,0.00019985,2]
[357963148,1744621849942,-421.512258,0.00019986,2]
[357963149,1744621849951,-1503.0586681,0.00019986,2]
[357963150,1744621849961,-1312.7188158,0.00019986,2]
[357963151,1744621849975,-3976.64696969,0.00019986,2]
[357963152,1744621849987,-48946.48323966,0.00019986,2]
[357963153,1744621849998,-611.70497818,0.00019986,2]
[357963154,1744621850010,-626.36968683,0.00019986,2]
[357963155,1744621850026,-590.08296798,0.00019986,2]
[357963156,1744621850037,-413.0,0.00019986,2]
[357963157,1744621850053,-23597.30473146,0.00019986,2]
[357963158,1744621850063,-848.141023,0.00019986,2]
[357963159,1744621850073,-9319.8144443,0.00019986,2]
[357963160,1744621850083,-822.79022036,0.0001999,2]
[357963161,1744621850092,-822.79022036,0.0001999,2]
[357963162,1744621850102,-1124.18,0.00019998,2]
[357963163,1744621850112,-500.0,0.00019998,2]
[357963164,1744621850122,-422.93771787,0.00019998,2]
[357963165,1744621850133,-150.0,0.00019998,2]
[357963166,1744621850142,-951.0,0.00019999,2]
[357963167,1744621850153,-300.0,0.00019999,2]
[357963168,1744621850162,-56648.65,0.00019999,2]
[357963169,1744621850172,-1092.49106309,0.00019999,2]
[357963170,1744621850181,-1000.0,0.00019999,2]
[357963171,1744621850191,-56.80346352,0.00019999,2]
[357963172,1744621850203,-943.19653648,0.00019999,2]
[357963173,1744621850215,-10.63230553,0.00019999,2]
[357963174,1744621850226,-989.36769447,0.00019999,2]
[357963175,1744621850236,-398.85542918,0.00019999,2]
[357963176,1744621850248,-601.14457082,0.00019999,2]
[357963177,1744621850257,-1000.0,0.00019999,2]
[357963178,1744621850267,-1000.0,0.00019999,2]
[357963179,1744621850276,-448.397339,0.00019999,2]
[357963180,1744621850286,-903.19,0.00019999,2]
[357963181,1744621850296,-2131.26,0.00019999,2]
[357963182,1744621850305,-2131.26,0.00019999,2]
[357963183,1744621850315,-2131.26,0.00019999,2]
[357963184,1744621850324,-2131.26,0.00019999,2]
[357963185,1744621850334,-2131.26,0.00019999,2]
[357963186,1744621850343,-2131.26,0.00019999,2]
[357963187,1744621850352,-2131.26,0.00019999,2]
[357963188,1744621850362,-2131.26,0.00019999,2]
[357963189,1744621850371,-2131.26,0.00019999,2]
[357963190,1744621850381,-2131.26,0.00019999,2]
[357963191,1744621850390,-2131.26,0.00019999,2]
[357963192,1744621850400,-2131.26,0.00019999,2]
[357963193,1744621850410,-2131.26,0.00019999,2]
[357963194,1744621850419,-2131.26,0.00019999,2]
[357963195,1744621850428,-2131.26,0.00019999,2]
[357963196,1744621850438,-2131.26,0.00019999,2]
[357963197,1744621850447,-2131.26,0.00019999,2]
[357963198,1744621850457,-2131.26,0.00019999,2]
[357963199,1744621850467,-2131.26,0.00019999,2]
[357963200,1744621850477,-2131.26,0.00019999,2]
[357963201,1744621850487,-2131.30475695,0.00019999,2]
[357963202,1744621850496,-1124.18,0.00019999,2]
[357963203,1744621850506,-1124.18,0.00019999,2]
[357963204,1744621850515,-1124.18,0.00019999,2]
[357963205,1744621850524,-1124.18,0.00019999,2]
[357963206,1744621850534,-1124.18,0.00019999,2]
[357963207,1744621850543,-1124.18,0.00019999,2]
[357963208,1744621850552,-1124.18,0.00019999,2]
[357963209,1744621850561,-1124.18,0.00019999,2]
[357963210,1744621850571,-1124.18,0.00019999,2]
[357963211,1744621850580,-1124.18,0.00019999,2]
[357963212,1744621850589,-1124.18,0.00019999,2]
[357963213,1744621850599,-1124.18,0.00019999,2]
[357963214,1744621850608,-1124.18,0.00019999,2]
[357963215,1744621850617,-1124.18,0.00019999,2]
[357963216,1744621850626,-1124.18,0.00019999,2]
[357963217,1744621850636,-1124.18,0.00019999,2]
[357963218,1744621850645,-1124.18,0.00019999,2]
[357963219,1744621850655,-1124.18,0.00019999,2]
[357963220,1744621850664,-1124.18,0.00019999,2]
[357963221,1744621850674,-1124.18,0.00019999,2]
[357963222,1744621850683,-1124.32414242,0.00019999,2]
[357963223,1744621850692,-500.0,0.00019999,2]
[357963224,1744621850701,-500.0,0.00019999,2]
[357963225,1744621850716,-500.0,0.00019999,2]
[357963226,1744621850726,-500.0,0.00019999,2]
[357963227,1744621850735,-500.0,0.00019999,2]
[357963228,1744621850744,-500.0,0.00019999,2]
[357963229,1744621850755,-500.0,0.00019999,2]
[357963230,1744621850905,-500.0,0.00019999,2]
[357963231,1744621850915,-592.1059884,0.00019999,2]
[357963232,1744621850925,-150.0,0.00019999,2]
[357963233,1744621850935,-150.0,0.00019999,2]
[357963234,1744621850944,-150.0,0.00019999,2]
[357963235,1744621850953,-150.0,0.00019999,2]
[357963236,1744621850963,-150.0,0.00019999,2]
[357963237,1744621850972,-150.0,0.00019999,2]
[357963238,1744621850982,-150.0,0.00019999,2]
[357963239,1744621850991,-150.0,0.00019999,2]
[357963240,1744621851001,-150.0,0.00019999,2]
[357963241,1744621851011,-150.0,0.00019999,2]
[357963242,1744621851020,-150.0,0.00019999,2]
[357963243,1744621851030,-150.0,0.00019999,2]
[357963244,1744621851040,-155.40338861,0.00019999,2]
[357963245,1744621851049,-174022.6285602,0.0002,2]
[357963246,1744621851068,-1453.84773269,0.0002,2]
[357963247,1744621851223,-500.0,0.00019178,2]
[357963248,1744621851233,-1348.76556754,0.00019285,2]
[357963249,1744621851242,-15298.4438192,0.0002,2]
[357963250,1744621851251,-108660.990191,0.0002,2]
[357963251,1744621851263,-850.58012222,0.0002,2]
[357963252,1744621851274,-3748.32722959,0.0002,2]
[357963253,1744621851285,-6492.98264759,0.0002,2]
[357963254,1744621851300,-31641.10442884,0.0002,2]
[357963255,1744621851311,-1028.93609989,0.0002,2]
[357963256,1744621851322,-682.60523184,0.0002,2]
[357963257,1744621851334,-1034.355,0.0002,2]
[357963258,1744621851461,-0.0037014,0.0002,2]
[357963259,1744621851473,-592.91821769,0.0002,2]
[357963260,1744621851485,-490.0,0.0002,2]
[357963261,1744621851496,-494.99999995,0.0002,2]
[357963262,1744621851507,-938.06921056,0.0002,2]
[357963263,1744621851534,-64684.01940438,0.0002,2]
[357963264,1744621851554,-749442.97174029,0.0002,2]
[357963265,1744621851570,-738532.54926034,0.0002,2]
[357963266,1744621851582,-6223.95118919,0.0002,2]
[357963267,1744621851594,-500.0,0.0002,2]
[357963268,1744621851605,-577.46205938,0.0002,2]
[357963269,1744621851616,-867.89771197,0.0002,2]
[357963270,1744621851628,-654.839996,0.0002,2]
[357963271,1744621851640,-15069.14477932,0.0002,2]
[357963272,1744621851651,-101243.46733165,0.0002,2]
[357963273,1744621851662,-77583.32733681,0.0002,2]
[357963274,1744621851678,-516.60684993,0.00019178,2]
[357963275,1744621851688,-3773.9836613,0.0002,2]
[357963276,1744621851699,-1431.62749016,0.0002,2]
[357963277,1744621851715,-1621.58702591,0.0002,2]
[357963278,1744621851727,-431.35265039,0.0002,2]
[357963279,1744621851738,-829.27284344,0.0002,2]
[357963280,1744621851749,-746.50011261,0.0002,2]
[357963281,1744621851760,-755.3272254,0.0002,2]
[357963282,1744621851955,-500.0,0.00019178,2]
[357963283,1744621851965,-500.0,0.00019178,2]
[357963284,1744621851975,-500.0,0.00019452,2]
[357963285,1744621851985,-566.8021701,0.0002,2]
[357963286,1744621851996,-631.44,0.0002,2]
[357963287,1744621852007,-1356.4999996,0.0002,2]
[357963288,1744621852019,-2513.09890421,0.0002,2]
[357963289,1744621852036,-1849.17996934,0.0002,2]
[357963290,1744621852360,-19852.51822778,0.0002,2]
[357963291,1744621852372,-72105.15202721,0.0002,2]
[357963292,1744621852381,-83245.24942919,0.0002,2]
[357963293,1744621852393,-450.0,0.0002,2]
[357963294,1744621852450,-96462.14944731,0.0002,2]
[357963295,1744621852461,-999289.9961189,0.0002,2]
[357963296,1744621852473,-10937.10514328,0.0002,2]
[357963297,1744621852485,-9500.48560775,0.0002,2]
[357963298,1744621852496,-506.62630079,0.0002,2]
[357963299,1744621852508,-352.72799642,0.0002,2]
[357963300,1744621852519,-550.3799999,0.0002,2]
[357963301,1744621852530,-1499.756,0.0002,2]
[357963302,1744621852541,-485.305,0.0002,2]
[357963303,1744621852552,-471.928098,0.0002,2]
[357963304,1744621852563,-2490.6707393,0.0002,2]
[357963305,1744621852574,-2903.04000028,0.0002,2]
[357963306,1744621852657,-500.0,0.00019178,2]
[357963307,1744621852667,-28.8977366,0.00019388,2]
[357963308,1744621852677,-1319.86783094,0.00019388,2]
[357963309,1744621852687,-500.0,0.00019452,2]
[357963310,1744621852698,-6749.73216906,0.0002,2]
[357963311,1744621852713,-467.96961399,0.0002,2]
[357963312,1744621852725,-180969.27767598,0.0002,2]
[357963313,1744621852735,-120718.08464355,0.0002,2]
[357963314,1744621852762,-1753.10207442,0.0002,2]
[357963315,1744621852774,-21429.7527284,0.0002,2]
[357963316,1744621852796,-319.47442196,0.0002,2]
[357963317,1744621852965,-4925.25979802,0.0002,2]
[357963318,1744621853415,-251.10073731,0.0002,2]
[357963319,1744621853427,-1417.56443875,0.0002,2]
[357963320,1744621853461,-1681.05,0.0002,2]
[357963321,1744621853473,-113336.85086669,0.0002,2]
[357963322,1744621853485,-844.60042232,0.0002,2]
[357963323,1744621853497,-1526.77504163,0.0002,2]
[357963324,1744621930040,223.57541,0.00025,30]
[357963325,1744621939134,20000.0,0.00025,30]
[357963326,1744621952518,160.535003,0.00025,30]
[357963327,1744621952678,160.535003,0.00024275,30]
[357963328,1744621952911,160.535003,0.0002355,30]
[357963329,1744621954364,160.535003,0.0002,4]
[357963330,1744621954658,160.535003,0.0002,4]
[357963331,1744621969961,152.034361,0.00025,30]
[357963332,1744621972926,159.934537,0.00025,30]
[357963333,1744621988403,163.333702,0.00025,30]
[357963334,1744622323569,242.67224915,0.00017035,2]
[357963335,1744622323596,348.16775085,0.00017035,2]
[357963336,1744622614081,162.996289,0.00025,30]
[357963337,1744622614369,162.996289,0.00024275,30]
[357963338,1744622615235,162.996289,0.0002,4]
[357963339,1744622615534,162.996289,0.0002,4]
[357963340,1744622618489,162.996289,0.00025,30]
[357963341,1744622619206,162.996289,0.00024275,30]
[357963342,1744622620220,162.996289,0.0002,4]
[357963343,1744622620512,162.996289,0.0002,4]
[357963357,1744622785379,-350.0,0.00021918,14]
[357963359,1744622883254,-6.62,0.00021918,14]
[357963360,1744622883288,-643.38,0.00021918,14]
[357963361,1744622883298,-6.62,0.00021918,14]
[357963379,1744622982390,500.0,0.00018501,3]
[357963388,1744623032084,-305.01,0.00018447,2]
[357963389,1744623032094,-250.0,0.00018484,2]
[357963390,1744623032104,-200.0,0.00018522,2]
[357963391,1744623032114,-202.0,0.00018525,2]
[357963392,1744623032125,-161.5,0.00018547,2]
[357963393,1744623032136,-250.0,0.00018549,2]
[357963394,1744623032146,-1000.0,0.00018953,2]
[357963395,1744623032155,-674.38278377,0.00019078,2]
[357963396,1744623032165,-1048.62,0.00019168,2]
[357963397,1744623032174,-674.38278377,0.00019169,2]
[357963398,1744623032183,-300.0,0.00019176,2]
[357963399,1744623032193,-300.0,0.00019176,2]
[357963400,1744623032202,-1990.39781336,0.00019177,2]
[357963401,1744623032214,-687.92150937,0.00019177,2]
[357963402,1744623032229,-5012.9395293,0.00019177,2]
[357963403,1744623032241,-308.74114797,0.00019177,2]
[357963404,1744623032251,-159.934537,0.00019178,2]
[357963405,1744623032260,-500.0,0.00019178,2]
[357963406,1744623032269,-500.0,0.00019178,2]
[357963407,1744623032280,-561.09542457,0.00019178,2]
[357963408,1744623032291,-500.0,0.00019178,2]
[357963409,1744623032300,-500.0,0.00019178,2]
[357963410,1744623032310,-500.0,0.00019178,2]
[357963411,1744623032320,-500.0,0.00019178,2]
[357963412,1744623032329,-279.91882066,0.00019178,2]
[357963451,1744623038087,-3028.73,0.00018403,2]
[357963452,1744623038097,-133.30984205,0.00019178,2]
[357963453,1744623038108,-86.77133729,0.00019178,2]
[357963454,1744623038119,-320.79866271,0.00019178,2]
[357963455,1744623038287,-179.20133729,0.00019178,2]
[357963456,1744623038297,-360.79866276,0.00019178,2]
[357963457,1744623038364,-139.20133724,0.00019178,2]
[357963458,1744623038373,-500.0,0.00019178,2]
[357963459,1744623038384,-500.0,0.00019178,2]
[357963460,1744623038394,-500.0,0.00019178,2]
[357963461,1744623038404,-505.45953802,0.00019178,2]
[357963462,1744623038414,-500.0,0.00019178,2]
[357963464,1744623038424,-500.0,0.00019178,2]
[357963465,1744623038434,-500.0,0.00019178,2]
[357963466,1744623038444,-500.0,0.00019178,2]
[357963467,1744623038453,-644.50738945,0.00019178,2]
[357963468,1744623038463,-559.04593371,0.00019178,2]
[357963469,1744623038473,-500.0,0.00019178,2]
[357963470,1744623038483,-500.0,0.00019178,2]
[357963471,1744623038493,-500.0,0.00019178,2]
[357963472,1744623038503,-500.0,0.00019178,2]
[357963473,1744623038512,-500.0,0.00019178,2]
[357963474,1744623038523,-500.0,0.00019178,2]
[357963475,1744623038532,-500.0,0.00019178,2]
[357963476,1744623038544,-500.0,0.00019178,2]
[357963477,1744623038554,-500.0,0.00019178,2]
[357963478,1744623038564,-500.0,0.00019178,2]
[357963479,1744623038574,-500.0,0.00019178,2]
[357963480,1744623038583,-502.84830676,0.00019178,2]
[357963481,1744623038596,-29.09013511,0.00019178,2]
[357963482,1744623038605,-369.32654153,0.00019178,2]
[357963483,1744623038615,-502.52705317,0.00019178,2]
[357963484,1744623038624,-565.29805731,0.00019178,2]
[357963485,1744623038634,-500.0,0.00019178,2]
[357963486,1744623038825,-500.0,0.00019178,2]
[357963487,1744623038836,-500.0,0.00019178,2]
[357963488,1744623038845,-500.0,0.00019178,2]
[357963489,1744623038855,-500.0,0.00019178,2]
[357963490,1744623038864,-500.0,0.00019178,2]
[357963491,1744623038873,-500.0,0.00019178,2]
[357963492,1744623038883,-500.0,0.00019178,2]
[357963493,1744623038892,-500.0,0.00019178,2]
[357963494,1744623038901,-500.0,0.00019178,2]
[357963495,1744623038911,-500.0,0.00019178,2]
[357963496,1744623038921,-514.6500165,0.00019178,2]
[357963497,1744623038930,-500.0,0.00019178,2]
[357963498,1744623038939,-500.0,0.00019178,2]
[357963499,1744623038949,-500.0,0.00019178,2]
[357963500,1744623038959,-388.73582529,0.00019178,2]
[357963501,1744623038968,-500.0,0.00019178,2]
[357963502,1744623038977,-594.51545208,0.00019178,2]
[357963503,1744623038986,-500.0,0.00019178,2]
[357963504,1744623038996,-500.0,0.00019178,2]
[357963505,1744623039006,-500.0,0.00019178,2]
[357963506,1744623039016,-501.21139511,0.00019178,2]
[357963507,1744623039025,-500.0,0.00019178,2]
[357963508,1744623039035,-605.26242689,0.00019178,2]
[357963509,1744623039044,-500.0,0.00019178,2]
[357963510,1744623039053,-500.0,0.00019178,2]
[357963511,1744623039063,-500.0,0.00019178,2]
[357963512,1744623039076,-500.0,0.00019178,2]
[357963513,1744623039085,-506.42631681,0.00019178,2]
[357963514,1744623039095,-500.0,0.00019178,2]
[357963515,1744623039104,-500.0,0.00019178,2]
[357963516,1744623039115,-500.0,0.00019178,2]
[357963517,1744623039124,-531.19766003,0.00019178,2]
[357963518,1744623039133,-505.71519687,0.00019178,2]
[357963519,1744623039143,-500.0,0.00019178,2]
[357963520,1744623039153,-500.0,0.00019178,2]
[357963521,1744623039162,-500.0,0.00019178,2]
[357963522,1744623039172,-500.0,0.00019178,2]
[357963523,1744623039182,-500.0,0.00019178,2]
[357963524,1744623039191,-500.0,0.00019178,2]
[357963525,1744623039200,-500.0,0.00019178,2]
[357963526,1744623039210,-629.63,0.00019178,2]
[357963527,1744623039219,-390.72571515,0.00019178,2]
[357963528,1744623039229,-500.0,0.00019178,2]
[357963529,1744623039240,-500.0,0.00019178,2]
[357963530,1744623039251,-500.0,0.00019178,2]
[357963531,1744623039260,-500.0,0.00019178,2]
[357963532,1744623039270,-500.0,0.00019178,2]
[357963533,1744623039279,-500.0,0.00019178,2]
[357963534,1744623039290,-500.0,0.00019178,2]
[357963535,1744623039299,-500.0,0.00019178,2]
[357963536,1744623039308,-500.0,0.00019178,2]
[357963537,1744623039318,-500.0,0.00019178,2]
[357963538,1744623039328,-500.0,0.00019178,2]
[357963539,1744623039337,-500.0,0.00019178,2]
[357963540,1744623039347,-406.56,0.00019178,2]
[357963541,1744623039356,-500.0,0.00019178,2]
[357963542,1744623039366,-486.32,0.00019178,2]
[357963543,1744623039375,-500.0,0.00019178,2]
[357963544,1744623039385,-500.0,0.00019178,2]
[357963545,1744623039394,-500.0,0.00019178,2]
[357963546,1744623039404,-649.62396354,0.00019178,2]
[357963547,1744623039413,-500.0,0.00019178,2]
[357963548,1744623039423,-500.0,0.00019178,2]
[357963549,1744623039432,-500.53,0.00019178,2]
[357963550,1744623039441,-500.0,0.00019178,2]
[357963551,1744623039451,-500.0,0.00019178,2]
[357963552,1744623039460,-500.0,0.00019178,2]
[357963553,1744623039470,-500.0,0.00019178,2]
[357963554,1744623039479,-500.0,0.00019178,2]
[357963555,1744623039489,-500.0,0.00019178,2]
[357963556,1744623039498,-500.0,0.00019178,2]
[357963557,1744623039508,-500.0,0.00019178,2]
[357963558,1744623039518,-500.0,0.00019178,2]
[357963559,1744623039527,-561.37,0.00019178,2]
[357963560,1744623039537,-500.0,0.00019178,2]
[357963561,1744623039547,-500.0,0.00019178,2]
[357963562,1744623039556,-500.0,0.00019178,2]
[357963563,1744623039566,-500.0,0.00019178,2]
[357963564,1744623039575,-500.0,0.00019178,2]
[357963565,1744623039585,-500.0,0.00019178,2]
[357963566,1744623039595,-500.0,0.00019178,2]
[357963567,1744623039604,-500.0,0.00019178,2]
[357963568,1744623039614,-617.65,0.00019178,2]
[357963569,1744623039623,-500.0,0.00019178,2]
[357963570,1744623039633,-500.0,0.00019178,2]
[357963571,1744623039642,-500.0,0.00019178,2]
[357963572,1744623039651,-500.0,0.00019178,2]
[357963573,1744623039660,-500.0,0.00019178,2]
[357963574,1744623039670,-500.0,0.00019178,2]
[357963575,1744623039679,-500.0,0.00019178,2]
[357963576,1744623039689,-500.0,0.00019178,2]
[357963577,1744623039698,-523.94,0.00019178,2]
[357963578,1744623039708,-500.0,0.00019178,2]
[357963579,1744623039719,-560.7186956,0.00019178,2]
[357963580,1744623039728,-527.14851133,0.00019178,2]
[357963581,1744623039738,-500.0,0.00019178,2]
[357963582,1744623039747,-574.45,0.00019178,2]
[357963583,1744623039757,-500.0,0.00019178,2]
[357963584,1744623039767,-500.0,0.00019178,2]
[357963585,1744623039776,-500.0,0.00019178,2]
[357963586,1744623039786,-500.0,0.00019178,2]
[357963587,1744623039796,-519.51,0.00019178,2]
[357963588,1744623039806,-500.0,0.00019178,2]
[357963589,1744623039815,-500.0,0.00019178,2]
[357963590,1744623039824,-500.0,0.00019178,2]
[357963591,1744623039834,-500.0,0.00019178,2]
[357963592,1744623039843,-551.97956989,0.00019178,2]
[357963593,1744623039852,-500.0,0.00019178,2]
[357963594,1744623039862,-500.0,0.00019178,2]
[357963595,1744623039871,-500.0,0.00019178,2]
[357963596,1744623039881,-500.0,0.00019178,2]
[357963597,1744623039891,-500.0,0.00019178,2]
[357963598,1744623039900,-500.0,0.00019178,2]
[357963599,1744623039910,-500.0,0.00019178,2]
[357963600,1744623039919,-500.0,0.00019178,2]
[357963601,1744623039928,-500.0,0.00019178,2]
[357963602,1744623039938,-500.0,0.00019178,2]
[357963603,1744623039947,-500.0,0.00019178,2]
[357963604,1744623039957,-500.0,0.00019178,2]
[357963605,1744623039966,-500.0,0.00019178,2]
[357963606,1744623039975,-500.0,0.00019178,2]
[357963607,1744623039985,-500.0,0.00019178,2]
[357963608,1744623039995,-500.0,0.00019178,2]
[357963609,1744623040004,-551.73,0.00019178,2]
[357963610,1744623040014,-500.0,0.00019178,2]
[357963611,1744623040024,-506.18,0.00019178,2]
[357963612,1744623040034,-500.0,0.00019178,2]
[357963613,1744623040043,-601.37,0.00019178,2]
[357963614,1744623040053,-500.0,0.00019178,2]
[357963615,1744623040062,-210.57006173,0.00019178,2]
[357963617,1744623040073,-510.25170695,0.00019178,2]
[357963619,1744623040083,-500.0,0.00019178,2]
[357963621,1744623040092,-500.0,0.00019178,2]
[357963623,1744623040102,-476.83,0.00019178,2]
[357963625,1744623040111,-244.63,0.00019178,2]
[357963626,1744623040121,-500.0,0.00019178,2]
[357963627,1744623040135,-500.0,0.00019178,2]
[357963628,1744623040156,-550.53,0.00019178,2]
[357963629,1744623040167,-500.0,0.00019178,2]
[357963630,1744623040176,-500.0,0.00019178,2]
[357963631,1744623040186,-500.0,0.00019178,2]
[357963632,1744623040195,-500.0,0.00019178,2]
[357963633,1744623040205,-500.0,0.00019178,2]
[357963634,1744623040215,-500.0,0.00019178,2]
[357963635,1744623040224,-500.0,0.00019178,2]
[357963636,1744623040234,-500.0,0.00019178,2]
[357963637,1744623040244,-500.0,0.00019178,2]
[357963638,1744623040253,-500.0,0.00019178,2]
[357963639,1744623040263,-387.24127736,0.00019178,2]
[357963640,1744623040272,-500.0,0.00019178,2]
[357963641,1744623040281,-500.0,0.00019178,2]
[357963642,1744623040291,-500.0,0.00019178,2]
[357963643,1744623040301,-500.0,0.00019178,2]
[357963644,1744623040311,-500.0,0.00019178,2]
[357963645,1744623040322,-500.0,0.00019178,2]
[357963646,1744623040332,-506.46,0.00019178,2]
[357963647,1744623040342,-319.60187327,0.00019178,2]
[357963648,1744623040352,-500.0,0.00019178,2]
[357963649,1744623040361,-500.0,0.00019178,2]
[357963650,1744623040371,-500.0,0.00019178,2]
[357963651,1744623040381,-500.0,0.00019178,2]
[357963652,1744623040391,-500.0,0.00019178,2]
[357963653,1744623040401,-153.13706151,0.00019178,2]
[357963654,1744623040411,-500.0,0.00019178,2]
[357963655,1744623040420,-500.0,0.00019178,2]
[357963656,1744623040430,-500.0,0.00019178,2]
[357963657,1744623040439,-519.21908451,0.00019178,2]
[357963658,1744623040449,-612.26,0.00019178,2]
[357963659,1744623040459,-500.0,0.00019178,2]
[357963660,1744623040469,-500.0,0.00019178,2]
[357963661,1744623040479,-500.0,0.00019178,2]
[357963662,1744623040488,-500.0,0.00019178,2]
[357963663,1744623040499,-500.0,0.00019178,2]
[357963664,1744623040508,-500.0,0.00019178,2]
[357963665,1744623040519,-606.22,0.00019178,2]
[357963666,1744623040528,-500.0,0.00019178,2]
[357963667,1744623040538,-500.0,0.00019178,2]
[357963668,1744623040548,-500.0,0.00019178,2]
[357963669,1744623040558,-500.0,0.00019178,2]
[357963670,1744623040567,-504.64343301,0.00019178,2]
[357963671,1744623040577,-500.0,0.00019178,2]
[357963672,1744623040586,-500.0,0.00019178,2]
[357963673,1744623040596,-500.0,0.00019178,2]
[357963674,1744623040606,-550.9226033,0.00019178,2]
[357963675,1744623040615,-500.0,0.00019178,2]
[357963676,1744623040626,-512.17,0.00019178,2]
[357963677,1744623040635,-500.0,0.00019178,2]
[357963678,1744623040645,-500.0,0.00019178,2]
[357963679,1744623040655,-500.0,0.00019178,2]
[357963680,1744623040665,-500.0,0.00019178,2]
[357963681,1744623040676,-552.9,0.00019178,2]
[357963682,1744623040686,-529.82,0.00019178,2]
[357963683,1744623040696,-500.0,0.00019178,2]
[357963684,1744623040707,-500.0,0.00019178,2]
[357963685,1744623040717,-500.0,0.00019178,2]
[357963686,1744623040727,-500.0,0.00019178,2]
[357963687,1744623040736,-500.0,0.00019178,2]
[357963688,1744623040746,-960.74,0.00019178,2]
[357963689,1744623040755,-500.0,0.00019178,2]
[357963690,1744623040764,-500.0,0.00019178,2]
[357963691,1744623040773,-500.0,0.00019178,2]
[357963692,1744623040783,-500.0,0.00019178,2]
[357963693,1744623040793,-570.31,0.00019178,2]
[357963694,1744623040802,-500.0,0.00019178,2]
[357963696,1744623040812,-500.0,0.00019178,2]
[357963697,1744623040822,-520.17470747,0.00019178,2]
[357963698,1744623040831,-500.0,0.00019178,2]
[357963699,1744623040841,-513.26885488,0.00019178,2]
[357963700,1744623040851,-552.98041173,0.00019178,2]
[357963701,1744623040860,-500.0,0.00019178,2]
[357963702,1744623040870,-500.0,0.00019178,2]
[357963703,1744623040880,-500.0,0.00019178,2]
[357963704,1744623040889,-500.0,0.00019178,2]
[357963705,1744623040899,-500.0,0.00019178,2]
[357963706,1744623040909,-500.0,0.00019178,2]
[357963707,1744623040918,-500.0,0.00019178,2]
[357963708,1744623040927,-500.0,0.00019178,2]
[357963709,1744623040937,-500.0,0.00019178,2]
[357963710,1744623040947,-517.49229586,0.00019178,2]
[357963711,1744623040956,-257.91465907,0.00019178,2]
[357963712,1744623040966,-1014.97,0.00019178,2]
[357963713,1744623040976,-500.0,0.00019178,2]
[357963714,1744623040985,-500.0,0.00019178,2]
[357963715,1744623040999,-35116.38,0.00019178,2]
[357963716,1744623041009,-500.0,0.00019178,2]
[357963717,1744623041019,-500.0,0.00019178,2]
[357963718,1744623041030,-500.0,0.00019178,2]
[357963719,1744623041041,-500.0,0.00019178,2]
[357963720,1744623041052,-1495.34,0.00019178,2]
[357963721,1744623041062,-500.0,0.00019178,2]
[357963722,1744623041074,-300.0,0.00019178,2]
[357963723,1744623041083,-500.0,0.00019178,2]
[357963724,1744623041094,-500.0,0.00019178,2]
[357963725,1744623041104,-500.0,0.00019178,2]
[357963726,1744623041115,-500.0,0.00019178,2]
[357963727,1744623041125,-534.02163594,0.00019178,2]
[357963728,1744623041134,-500.0,0.00019178,2]